bitfinex-derivatives/quotes_ETHF0:USTF0_20241020
["timestamp","ask_amount","ask_price","bid_price","bid_amount"]
[1729382903961,3.98495,2654.4,2654.3,6.62810939]
[1729382904660,0.77715,2654.4,2654.3,6.62810939]
[1729382905065,3.98495,2654.4,2654.3,6.62810939]
[1729382905264,0.77715,2654.4,2654.3,6.74594388]
[1729382905465,0.77715,2654.4,2654.3,6.62810939]
[1729382906363,0.77715,2654.4,2654.3,4.77104571]
[1729382906662,0.77715,2654.4,2654.3,6.63016294]
[1729382906863,0.37675,2654.4,2654.3,4.77483195]
[1729382907069,0.779,2654.5,2654.3,4.77483195]
[1729382907365,0.779,2654.5,2654.4,6.23529981]
[1729382907366,1.15574,2654.5,2654.4,6.23529981]
[1729382907870,1.15574,2654.5,2654.4,3.3963942]
[1729382908371,1.15574,2654.5,2654.4,6.23635883]
[1729382909577,1.15574,2654.5,2654.4,6.35419333]
[1729382910172,1.15574,2654.5,2654.4,6.23635883]
[1729382910375,1.15574,2654.5,2654.4,6.35419353]
[1729382910574,1.10104,2654.5,2654.4,6.35419353]
[1729382911073,1.10104,2654.5,2654.4,6.23635883]
[1729382911276,1.10104,2654.5,2654.4,4.3772635]
[1729382911674,1.10104,2654.5,2654.4,0.11783305]
[1729382911872,1.10104,2654.5,2654.4,4.38000677]
[1729382912678,1.10104,2654.5,2654.4,6.84863042]
[1729382912883,1.10104,2654.5,2654.4,4.38000677]
[1729382914774,1.10104,2654.5,2654.4,4.26217372]
[1729382914969,1.10104,2654.5,2654.4,4.38000848]
[1729382916681,1.10104,2654.5,2654.4,4.38007171]
[1729382916882,1.10104,2654.5,2654.4,6.84869536]
[1729382917178,1.10104,2654.5,2654.4,4.38007171]
[1729382918673,1.10104,2654.5,2654.4,4.26223695]
[1729382918875,1.10104,2654.5,2654.4,6.35880341]
[1729382919179,1.10104,2654.5,2654.4,4.38007111]
[1729382919977,1.10104,2654.5,2654.4,6.35883387]
[1729382920787,1.10104,2654.5,2654.4,6.35883574]
[1729382921284,1.10104,2654.5,2654.4,4.38007298]
[1729382921677,1.10104,2654.5,2654.4,4.38010152]
[1729382922376,0.37674,2654.5,2654.4,4.26226549]
[1729382922583,1.15574,2654.5,2654.4,6.3588602]
[1729382923481,1.15574,2654.5,2654.4,6.3589047]
[1729382923783,1.15574,2654.5,2654.4,4.38010096]
[1729382925785,1.15574,2654.5,2654.4,6.35896039]
[1729382925985,1.15574,2654.5,2654.4,4.38010096]
[1729382926180,1.15574,2654.5,2654.4,6.35895323]
[1729382926374,1.15574,2654.5,2654.4,6.24111776]
[1729382926574,1.15574,2654.5,2654.4,6.27140278]
[1729382926979,1.15574,2654.5,2654.4,4.41038944]
[1729382927281,1.15574,2654.5,2654.4,6.27139361]
[1729382927687,1.15574,2654.5,2654.4,3.40969327]
[1729382928983,1.15574,2654.5,2654.4,6.2712972]
[1729382929491,1.15574,2654.5,2654.4,3.40969327]
[1729382929888,4.92294,2654.5,2654.4,1.43085017]
[1729382930083,4.92294,2654.5,2654.4,2.91495859]
[1729382931581,4.92294,2654.5,2654.4,1.43085017]
[1729382931783,4.92294,2654.5,2654.4,0.98914308]
[1729382932586,5.17993813,2654.5,2654.4,0.98914308]
[1729382933586,8.38773813,2654.5,2654.4,0.98914308]
[1729382934477,8.01099813,2654.5,2654.4,0.98914308]
[1729382934788,8.38772813,2654.5,2654.4,0.98914308]
[1729382934987,0.37675,2654.4,2654.3,0.98914308]
[1729382935183,1.63075,2654.4,2654.3,2.41908007]
[1729382935491,8.60575,2654.4,2654.3,2.41866417]
[1729382936486,8.60575,2654.4,2654.3,0.98872718]
[1729382936793,5.39795,2654.4,2654.3,0.98872718]
[1729382937096,8.60575,2654.4,2654.3,0.98872718]
[1729382937484,5.39795,2654.4,2654.3,0.98872718]
[1729382937691,8.60575,2654.4,2654.3,0.98872718]
[1729382938286,1.63075,2654.4,2654.3,0.98872718]
[1729382938598,4.78385,2654.4,2654.3,0.98872718]
[1729382939291,1.57605,2654.4,2654.3,0.98872718]
[1729382939493,4.78385,2654.4,2654.3,0.98872718]
[1729382940087,4.78385,2654.4,2654.3,1.40722718]
[1729382940787,3.52985,2654.4,2654.3,1.40722718]
[1729382941095,0.32205,2654.4,2654.3,3.33193661]
[1729382941789,0.32205,2654.4,2654.3,1.84782819]
[1729382942103,1.15075,2654.4,2654.3,3.82667129]
[1729382942395,1.15075,2654.4,2654.3,1.84782819]
[1729382942695,1.15075,2654.4,2654.3,3.82667129]
[1729382943991,1.15075,2654.4,2654.3,1.84782819]
[1729382944187,1.15075,2654.4,2654.3,3.33041299]
[1729382944594,1.15075,2654.4,2654.3,3.33043607]
[1729382945494,1.15075,2654.4,2654.3,1.84785127]
[1729382946392,1.15075,2654.4,2654.3,3.82669437]
[1729382946594,1.15075,2654.4,2654.3,1.84785127]
[1729382946795,0.774,2654.4,2654.3,6.68539686]
[1729382947093,0.774,2654.4,2654.3,4.82438664]
[1729382947094,0.20839962,2654.4,2654.3,4.82438664]
[1729382947599,0.20839962,2654.4,2654.3,4.70655376]
[1729382947891,0.58514962,2654.4,2654.3,4.82438668]
[1729382948686,0.20839962,2654.4,2654.3,4.82438668]
[1729382949291,0.58514962,2654.4,2654.3,4.82438668]
[1729382951699,0.58514962,2654.4,2654.3,4.82438847]
[1729382952600,0.58514962,2654.4,2654.3,3.82463722]
[1729382952996,0.58514962,2654.4,2654.3,1.84785127]
[1729382954409,0.58514962,2654.4,2654.3,0.98847876]
[1729382954410,4.35234962,2654.4,2654.3,0.98847876]
[1729382954614,0.37676,2654.3,2654.2,0.98847876]
[1729382954805,3.98076,2654.3,2654.2,0.98847876]
[1729382956408,0.37678,2654.2,2654.1,0.98847876]
[1729382956612,0.80168,2654.2,2654.1,1.42688311]
[1729382956803,0.80168,2654.2,2654.1,2.90960126]
[1729382957120,4.00948,2654.2,2654.1,2.90960126]
[1729382957706,4.00948,2654.2,2654.1,2.41518988]
[1729382959306,4.00948,2654.2,2654.1,2.41501257]
[1729382959810,4.00948,2654.2,2654.1,0.98830677]
[1729382961011,0.80168,2654.2,2654.1,0.98830677]
[1729382961309,4.00948,2654.2,2654.1,0.98830677]
[1729382961605,0.80168,2654.2,2654.1,0.98830677]
[1729382961806,4.00948,2654.2,2654.1,0.98830677]
[1729382963613,0.80168,2654.2,2654.1,0.98830677]
[1729382963912,4.00948,2654.2,2654.1,0.98830677]
[1729382964309,7.4007,2654.2,2653.9,0.12650093]
[1729382964605,0.37683,2653.8,2653.7,1.48271815]
[1729382964808,0.37685,2653.7,2653.6,1.48271815]
[1729382965010,0.37685,2653.7,2653.6,1.42638106]
[1729382965212,0.37686,2653.6,2653.5,0.3915]
[1729382965406,0.78206,2653.6,2653.5,0.3915]
[1729382966409,0.77526,2653.6,2653.5,0.3915]
[1729382967607,0.771,2653.6,2653.5,0.3915]
[1729382967906,1.14786,2653.6,2653.5,0.3915]
[1729382969303,4.35566,2653.6,2653.5,0.3915]
[1729382982914,1.14786,2653.6,2653.5,0.3915]
[1729382983216,4.35566,2653.6,2653.5,0.3915]
[1729382989221,1.14786,2653.6,2653.5,0.3915]
[1729382989415,4.35566,2653.6,2653.5,0.3915]
[1729382989921,1.14786,2653.6,2653.5,0.3915]
[1729382990225,4.35566,2653.6,2653.5,0.3915]
[1729382992128,1.14786,2653.6,2653.5,0.3915]
[1729382992326,4.35566,2653.6,2653.5,0.3915]
[1729382996533,1.14786,2653.6,2653.5,0.3915]
[1729382996739,4.35566,2653.6,2653.5,0.3915]
[1729382997035,1.14786,2653.6,2653.5,0.3915]
[1729382997336,4.35566,2653.6,2653.5,0.3915]
[1729382999421,1.14786,2653.6,2653.5,0.3915]
[1729382999621,4.35566,2653.6,2653.5,0.3915]
[1729383001025,3.9788,2653.6,2653.5,0.3915]
[1729383001240,3.9788,2653.6,2653.5,1.8132054]
[1729383001432,3.9788,2653.6,2653.5,3.29592355]
[1729383001830,3.9788,2653.6,2653.5,3.29594628]
[1729383001831,3.2078,2653.6,2653.5,3.29594628]
[1729383002132,3.2078,2653.6,2653.5,7.55881408]
[1729383002433,3.2078,2653.6,2653.5,10.40240369]
[1729383003434,3.2078,2653.6,2653.5,5.58202813]
[1729383003630,3.2078,2653.6,2653.5,7.55881408]
[1729383003832,3.2078,2653.6,2653.5,5.58202813]
[1729383004839,3.2078,2653.6,2653.5,7.55881408]
[1729383005035,3.2078,2653.6,2653.5,5.58202813]
[1729383005345,3.2078,2653.6,2653.5,7.55881408]
[1729383006033,3.2078,2653.6,2653.5,6.63474684]
[1729383006639,1.14785,2653.7,2653.5,6.63474684]
[1729383006942,1.14785,2653.7,2653.6,1.42172813]
[1729383008236,1.14785,2653.7,2653.6,6.2444335]
[1729383008237,0.58209849,2653.7,2653.6,6.2444335]
[1729383009738,0.58209849,2653.7,2653.6,3.39851408]
[1729383011436,0.58209849,2653.7,2653.6,1.42172813]
[1729383011639,0.58209849,2653.7,2653.6,1.42084774]
[1729383012535,3.2078,2653.8,2653.6,7.16563369]
[1729383012744,1.14782,2653.9,2653.7,7.16563369]
[1729383012934,1.14782,2653.9,2653.8,2.67754774]
[1729383013335,1.14782,2653.9,2653.8,4.15969923]
[1729383013837,1.14782,2653.9,2653.8,4.15969128]
[1729383014242,3.9788,2654.1,2653.8,2.67754774]
[1729383014547,3.9788,2654.1,2653.9,2.90278186]
[1729383014746,3.9788,2654.1,2654.0,2.90278186]
[1729383014747,4.35559,2654.1,2654.0,2.90278186]
[1729383015137,4.35559,2654.1,2653.8,3.23348595]
[1729383015138,0.3768,2654.0,2653.9,1.48193412]
[1729383015436,0.3768,2654.0,2653.9,2.90218343]
[1729383015835,0.3768,2654.0,2653.9,1.42024931]
[1729383016045,0.3768,2654.0,2653.9,2.90218343]
[1729383016446,3.9788,2654.1,2653.9,1.42005966]
[1729383016647,3.9788,2654.1,2653.8,2.73863412]
[1729383016955,0.37682,2653.9,2653.8,2.73863412]
[1729383017140,0.37682,2653.9,2653.8,4.15871259]
[1729383021343,1.16182,2653.9,2653.8,4.15833137]
[1729383022343,1.16182,2653.9,2653.8,2.67639725]
[1729383022545,1.16182,2653.9,2653.8,4.15833137]
[1729383022754,1.16182,2653.9,2653.8,2.67639725]
[1729383023942,1.16182,2653.9,2653.8,4.15833137]
[1729383024446,0.37682,2653.9,2653.8,4.15833137]
[1729383035747,0.37682,2653.9,2653.8,2.67639725]
[1729383036551,0.37682,2653.9,2653.8,4.15787008]
[1729383036946,0.37682,2653.9,2653.8,2.67639725]
[1729383037151,0.37682,2653.9,2653.8,4.15787238]
[1729383037351,0.37682,2653.9,2653.8,2.67639725]
[1729383037657,0.37682,2653.9,2653.8,4.15802643]
[1729383039350,0.37682,2653.9,2653.8,3.73422643]
[1729383039559,0.76532,2653.9,2653.8,2.25259725]
[1729383041158,0.76532,2653.9,2653.8,2.25348107]
[1729383041359,0.76532,2653.9,2653.8,3.73511025]
[1729383043763,0.37682,2653.9,2653.8,3.73511025]
[1729383045256,0.37682,2653.9,2653.8,2.25348107]
[1729383045973,0.37682,2653.9,2653.8,2.25481767]
[1729383049659,1.14782,2653.9,2653.8,2.25481767]
[1729383051057,1.14782,2653.9,2653.8,2.25503366]
[1729383052865,1.14782,2653.9,2653.8,4.23181961]
[1729383053767,4.35562,2653.9,2653.8,4.23181961]
[1729383054769,4.35562,2653.9,2653.8,2.25503366]
[1729383055368,1.14782,2653.9,2653.8,4.23181961]
[1729383055574,1.14782,2653.9,2653.8,7.07655818]
[1729383055776,1.14782,2653.9,2653.8,7.07677729]
[1729383055978,1.14782,2653.9,2653.8,4.23204973]
[1729383057372,1.14782,2653.9,2653.8,2.25526378]
[1729383057766,1.14782,2653.9,2653.8,2.30996378]
[1729383058271,1.14782,2653.9,2653.8,4.28674973]
[1729383058471,1.14782,2653.9,2653.8,2.30996378]
[1729383060567,1.14782,2653.9,2653.8,2.3100795]
[1729383060758,1.14782,2653.9,2653.8,3.79414832]
[1729383062261,4.91582,2653.9,2653.8,0.0547]
[1729383062467,5.32442,2653.9,2653.8,0.0547]
[1729383066269,1.55642,2653.9,2653.8,0.0547]
[1729383066464,0.78542,2653.9,2653.8,0.0547]
[1729383066674,1.40011169,2653.9,2653.8,0.0547]
[1729383066970,1.14782,2653.9,2653.8,2.96023208]
[1729383067370,1.14782,2653.9,2653.8,1.47616326]
[1729383067678,1.14782,2653.9,2653.8,2.96023208]
[1729383068772,0.37682,2653.9,2653.8,2.96023208]
[1729383068966,1.14782,2653.9,2653.8,2.96023208]
[1729383069169,0.771,2653.9,2653.8,2.96023208]
[1729383069575,1.14782,2653.9,2653.8,3.78253208]
[1729383070173,3.2078,2654.0,2653.8,3.78253208]
[1729383070479,4.35561,2654.0,2653.9,1.42146326]
[1729383070871,3.9788,2654.0,2653.9,2.90553208]
[1729383071382,4.3556,2654.0,2653.9,2.90553208]
[1729383072583,4.3556,2654.0,2653.9,2.90549795]
[1729383075077,1.1478,2654.0,2653.9,2.90549795]
[1729383078685,1.1478,2654.0,2653.9,2.90563175]
[1729383083497,1.1478,2654.0,2653.9,1.48406882]
[1729383083692,1.1478,2654.0,2653.9,2.90578241]
[1729383085799,4.3556,2654.0,2653.9,2.90578241]
[1729383087282,1.1478,2654.0,2653.9,2.90578241]
[1729383087486,4.3556,2654.0,2653.9,2.90578241]
[1729383088991,1.1478,2654.0,2653.9,2.90578241]
[1729383089991,4.3556,2654.0,2653.9,2.90578241]
[1729383092394,1.1478,2654.0,2653.9,2.90578241]
[1729383092795,4.3556,2654.0,2653.9,2.90578241]
[1729383093496,4.3556,2654.0,2653.9,2.90573811]
[1729383094493,3.2078,2654.1,2653.9,2.90573811]
[1729383094698,0.18752687,2655.0,2653.8,2.79908595]
[1729383094699,3.2078,2654.4,2654.0,7.24730946]
[1729383095008,3.2078,2654.4,2654.3,1.97724784]
[1729383095190,3.2078,2654.4,2654.3,3.39891713]
[1729383095398,3.2078,2654.4,2654.3,1.42166929]
[1729383095897,3.2078,2654.4,2654.3,3.39891713]
[1729383096297,3.2078,2654.4,2654.3,1.42166929]
[1729383096498,0.37673,2654.5,2654.3,1.42166929]
[1729383096802,0.37673,2654.6,2654.4,3.31832851]
[1729383096990,1.14773,2654.6,2654.5,2.83567614]
[1729383097299,0.37673,2654.6,2654.5,1.41400685]
[1729383097498,1.14773,2654.6,2654.5,1.41400685]
[1729383098400,1.14773,2654.6,2654.5,0.4261]
[1729383098786,0.771,2654.6,2654.5,0.4261]
[1729383098992,3.9788,2654.7,2654.5,2.83384587]
[1729383099192,3.9788,2654.7,2654.6,0.4234]
[1729383099399,3.9788,2654.7,2654.6,1.41130685]
[1729383100502,3.9788,2654.7,2654.6,0.4234]
[1729383101399,3.2078,2654.7,2654.6,1.41130685]
[1729383101597,3.2078,2654.7,2654.6,5.17850685]
[1729383101803,3.2078,2654.7,2654.6,5.60930731]
[1729383101993,3.2078,2654.7,2654.6,7.09116653]
[1729383102293,3.2078,2654.7,2654.6,6.59558679]
[1729383102494,3.2078,2654.7,2654.6,5.60930731]
[1729383102704,3.2078,2654.7,2654.6,6.59558632]
[1729383102897,3.2078,2654.7,2654.6,5.60930731]
[1729383103097,3.2078,2654.7,2654.6,7.09069408]
[1729383103295,3.2078,2654.7,2654.6,6.59483342]
[1729383104302,3.2078,2654.7,2654.6,5.17659856]
[1729383104503,4.35548,2654.9,2654.6,5.17659856]
[1729383104802,4.35548,2654.9,2654.6,1.40939856]
[1729383105008,4.35549,2654.9,2654.6,1.40939856]
[1729383105397,4.35549,2654.9,2654.6,0.4234]
[1729383106601,1.14769,2654.9,2654.6,0.4234]
[1729383106803,3.9788,2654.9,2654.6,1.40939856]
[1729383108407,3.9788,2654.9,2654.6,0.4234]
[1729383108603,3.9788,2654.9,2654.6,0.80011]
[1729383108797,3.2078,2654.9,2654.6,4.1906]
[1729383109100,3.2078,2654.9,2654.7,1.36268856]
[1729383109296,3.2078,2654.9,2654.8,0.4089]
[1729383109501,3.2078,2654.9,2654.8,1.19649]
[1729383109804,3.2078,2654.9,2654.8,4.96289]
[1729383110906,3.2078,2654.9,2654.8,4.5862]
[1729383111807,3.58445,2655.1,2654.8,4.5862]
[1729383112010,3.58445,2655.1,2654.8,4.96288]
[1729383113207,3.2078,2655.1,2654.8,4.5862]
[1729383113405,3.58445,2655.1,2654.8,4.5862]
[1729383114508,3.58445,2655.1,2654.8,4.96288]
[1729383115009,3.2078,2655.1,2654.8,4.96288]
[1729383115205,3.2078,2655.1,2654.8,1.19648]
[1729383115406,3.58445,2655.1,2654.8,1.19648]
[1729383116107,3.58445,2655.1,2654.8,0.8198]
[1729383116413,3.2078,2655.1,2654.8,0.8198]
[1729383116597,3.2078,2655.1,2654.8,1.19648]
[1729383117011,3.2078,2655.1,2654.9,0.37668]
[1729383117307,3.2078,2655.1,2655.0,0.4165]
[1729383118707,3.2078,2655.1,2655.0,4.1829]
[1729383118899,3.2078,2655.1,2655.0,4.55956]
[1729383119301,3.2078,2655.1,2655.0,4.67735992]
[1729383119902,2.26544336,2655.1,2655.0,5.66335848]
[1729383120101,2.26544336,2655.1,2655.0,5.28669848]
[1729383120911,2.26544336,2655.1,2655.0,5.16889856]
[1729383121099,2.26544336,2655.1,2655.0,5.28669087]
[1729383121611,2.26544336,2655.1,2655.0,4.67735231]
[1729383122007,2.26544336,2655.1,2655.0,4.55956]
[1729383123312,2.26544336,2655.1,2655.0,4.1829]
[1729383123512,2.64209336,2655.1,2655.0,4.1829]
[1729383123713,2.64209336,2655.1,2655.0,0.4165]
[1729383124314,2.64209336,2655.1,2655.0,4.1829]
[1729383127618,2.64209336,2655.1,2655.0,4.55956]
[1729383127816,2.64209336,2655.1,2655.0,4.1829]
[1729383129115,0.37665,2655.1,2655.0,4.1829]
[1729383129625,0.37665,2655.1,2655.0,0.4165]
[1729383130330,0.4292,2655.2,2654.8,1.19648]
[1729383130331,0.37668,2654.9,2654.8,1.19648]
[1729383130715,0.37668,2654.9,2654.8,4.96288]
[1729383131117,0.37667,2655.0,2654.8,4.96288]
[1729383131422,0.37667,2655.0,2654.9,3.7664]
[1729383132924,0.37667,2655.0,2654.9,4.14308]
[1729383133117,0.37667,2655.0,2654.9,3.7664]
[1729383133628,0.37665,2655.1,2654.9,4.14307]
[1729383133827,0.37665,2655.1,2654.9,1.36266856]
[1729383134020,0.4292,2655.2,2655.1,0.37665]
[1729383134320,0.4165,2655.4,2655.1,1.10379245]
[1729383134513,0.4165,2655.4,2655.2,1.51929245]
[1729383134717,0.79311,2655.4,2655.2,2.17862856]
[1729383135920,0.4165,2655.4,2655.2,1.80199856]
[1729383136427,0.79311,2655.4,2655.2,1.80199856]
[1729383136825,0.79311,2655.4,2655.2,2.17862856]
[1729383137221,0.79311,2655.4,2655.2,1.80199856]
[1729383137424,0.79311,2655.4,2655.3,0.11778798]
[1729383137725,0.79311,2655.4,2655.3,1.10378654]
[1729383137925,0.79311,2655.4,2655.3,0.11778798]
[1729383138325,0.37661,2655.4,2655.3,1.10378654]
[1729383139027,0.37661,2655.4,2655.3,0.11778798]
[1729383139322,0.37662,2655.3,2655.2,2.29785922]
[1729383139531,0.37662,2655.3,2655.2,3.82861566]
[1729383139727,0.37662,2655.3,2655.2,7.78347731]
[1729383139916,0.37662,2655.3,2655.2,7.59501566]
[1729383140122,0.37662,2655.3,2655.2,3.82861566]
[1729383140321,0.37662,2655.3,2655.2,4.01707945]
[1729383140832,0.37662,2655.3,2655.2,3.20167906]
[1729383141129,0.37662,2655.3,2655.2,0.11778986]
[1729383141323,0.37663,2655.2,2655.1,0.98567516]
[1729383141521,1.22073,2655.2,2655.1,1.10347802]
[1729383141726,1.22073,2655.2,2655.1,0.11780286]
[1729383141925,1.22073,2655.2,2655.1,1.10347802]
[1729383142727,1.22073,2655.2,2655.1,0.98567516]
[1729383143228,0.37665,2655.1,2655.0,0.98567516]
[1729383143427,0.79275,2655.1,2655.0,1.10348525]
[1729383143619,0.79275,2655.1,2655.0,0.98567516]
[1729383143830,0.79275,2655.1,2655.0,1.10348637]
[1729383144137,0.79275,2655.1,2655.0,0.98567516]
[1729383144324,0.79275,2655.1,2655.0,3.01417118]
[1729383144726,0.79275,2655.1,2655.0,2.51884408]
[1729383144926,0.79275,2655.1,2655.0,0.98653212]
[1729383145128,0.4161,2655.1,2654.9,0.98653212]
[1729383145333,0.37666,2655.0,2654.9,0.98653212]
[1729383147234,0.37666,2655.0,2654.9,2.40195586]
[1729383147437,0.37666,2655.0,2654.9,0.98653212]
[1729383148238,0.37666,2655.0,2654.9,2.40195476]
[1729383148441,0.37666,2655.0,2654.9,2.40204323]
[1729383149137,0.37666,2655.0,2654.9,0.98653212]
[1729383149436,0.37668,2654.9,2654.8,0.98653212]
[1729383149629,0.37668,2654.9,2654.8,2.40210591]
[1729383150540,0.37668,2654.9,2654.8,2.40214735]
[1729383150732,0.37668,2654.9,2654.8,1.41561523]
[1729383151733,0.4161,2655.1,2654.8,1.41567634]
[1729383151934,0.37666,2655.0,2654.9,0.98721138]
[1729383152534,0.37668,2654.9,2654.8,0.98721138]
[1729383152740,0.37668,2654.9,2654.8,2.89762368]
[1729383152937,0.37668,2654.9,2654.8,2.40304369]
[1729383153148,0.37668,2654.9,2654.8,1.41576446]
[1729383153437,0.37668,2654.9,2654.8,2.40303716]
[1729383153643,0.37668,2654.9,2654.8,1.41576446]
[1729383154837,0.37668,2654.9,2654.8,2.40304632]
[1729383155145,0.37668,2654.9,2654.8,1.41576446]
[1729383156143,0.37668,2654.9,2654.5,0.8349]
[1729383156144,3.7664,2654.9,2654.5,1.48185922]
[1729383156440,3.7664,2654.9,2654.4,1.48185922]
[1729383156441,0.37673,2654.5,2654.4,1.48185922]
[1729383156645,3.2078,2654.7,2654.2,1.48185922]
[1729383156646,4.14958,2654.7,2654.2,1.48185922]
[1729383156944,3.2078,2654.3,2653.9,1.48185922]
[1729383157245,3.2078,2654.3,2653.8,1.97724784]
[1729383157246,1.1931,2654.2,2653.8,1.48185922]
[1729383157548,0.37683,2653.8,2653.7,1.91005922]
[1729383157737,0.37683,2653.8,2653.7,0.4282]
[1729383157937,0.395,2653.9,2653.6,1.89565922]
[1729383158146,0.395,2653.9,2653.6,0.4138]
[1729383158147,0.37685,2653.7,2653.6,0.4138]
[1729383158338,0.395,2653.9,2653.6,0.4138]
[1729383158544,0.37684,2653.8,2653.6,0.4138]
[1729383158937,0.37685,2653.7,2653.6,0.4138]
[1729383159741,0.37684,2653.8,2653.6,0.4138]
[1729383159945,0.37685,2653.7,2653.6,0.4138]
[1729383160140,0.395,2653.9,2653.4,0.4252]
[1729383160343,0.37687,2653.6,2653.4,0.4252]
[1729383160544,3.9798,2653.7,2653.2,1.88115922]
[1729383160739,0.37689,2653.4,2653.2,0.3993]
[1729383160950,0.37688,2653.5,2653.2,0.3993]
[1729383161146,0.37687,2653.5,2653.2,0.3993]
[1729383161346,0.4276,2653.6,2653.2,0.3993]
[1729383161642,0.3769,2653.3,2653.2,0.3993]
[1729383161849,0.3769,2653.4,2653.2,0.3993]
[1729383163850,0.37688,2653.5,2653.2,0.3993]
[1729383164247,0.8279,2653.6,2653.2,0.3993]
[1729383164450,0.37689,2653.4,2653.2,0.3993]
[1729383165545,0.8279,2653.6,2653.2,0.3993]
[1729383165747,0.37689,2653.4,2653.2,0.3993]
[1729383165949,0.772,2653.5,2653.2,0.3993]
[1729383166162,0.772,2653.5,2653.3,0.4197]
[1729383167461,0.395,2653.9,2653.3,0.4197]
[1729383167658,3.86884638,2654.0,2653.3,0.4197]
[1729383167659,3.6171,2654.0,2653.3,0.4197]
[1729383167861,0.775,2653.9,2653.5,0.37687]
[1729383168167,0.37683,2653.8,2653.3,4.00439]
[1729383168467,1.15183,2653.9,2653.3,4.00439]
[1729383168675,1.15183,2653.9,2653.4,0.37688]
[1729383169173,1.15183,2653.9,2653.5,0.4083]
[1729383169370,0.37683,2653.9,2653.5,0.4083]
[1729383172066,3.9828,2654.0,2653.5,0.4083]
[1729383172273,0.37684,2653.8,2653.5,0.4083]
[1729383172478,0.37683,2653.9,2653.5,0.4083]
[1729383172776,0.37684,2653.8,2653.5,0.4083]
[1729383173769,3.9828,2654.0,2653.5,0.4083]
[1729383173970,0.37685,2653.7,2653.5,0.4083]
[1729383174277,0.37686,2653.6,2653.5,0.4083]
[1729383174980,0.37689,2653.4,2653.2,0.3993]
[1729383175190,0.37689,2653.4,2653.3,0.3927]
[1729383179483,0.3769,2653.3,2653.2,0.3993]
[1729383179682,0.37693,2653.1,2653.0,0.387]
[1729383179874,3.2078,2653.4,2653.0,0.387]
[1729383180581,0.37693,2653.1,2653.0,0.387]
[1729383182482,0.37693,2653.2,2653.0,0.387]
[1729383182683,0.37693,2653.1,2653.0,0.387]
[1729383182987,0.37689,2653.4,2653.3,0.0547]
[1729383186084,1.15189,2653.4,2653.3,0.0547]
[1729383195196,0.775,2653.4,2653.3,0.0547]
[1729383195391,1.15189,2653.4,2653.3,0.0547]
[1729383195698,0.775,2653.4,2653.3,0.0547]
[1729383196088,1.15189,2653.4,2653.3,0.0547]
[1729383197295,0.775,2653.4,2653.3,0.0547]
[1729383197796,0.775,2653.4,2653.3,0.8629]
[1729383197992,1.15189,2653.4,2653.3,0.8629]
[1729383198202,1.15189,2653.4,2653.3,0.8082]
[1729383198505,3.2078,2653.6,2653.3,0.8082]
[1729383198692,3.2078,2653.6,2653.4,3.26525162]
[1729383198895,3.2078,2653.6,2653.5,1.40648309]
[1729383199098,1.15484,2653.8,2653.5,2.88834231]
[1729383199291,1.15484,2653.8,2653.6,1.40648309]
[1729383199498,0.778,2653.8,2653.7,0.7924]
[1729383200190,4.481,2654.1,2653.7,0.7924]
[1729383200191,3.2078,2654.1,2653.9,0.37682]
[1729383200402,3.2078,2654.1,2654.0,1.4078281]
[1729383200593,3.2078,2654.1,2654.0,2.88770055]
[1729383201002,0.37679,2654.1,2654.0,2.88770055]
[1729383201292,0.37679,2654.1,2654.0,1.4078281]
[1729383201507,0.37679,2654.1,2654.0,2.88820966]
[1729383202295,0.37679,2654.1,2654.0,1.4092443]
[1729383204585,1.15478,2654.2,2654.0,1.4092443]
[1729383204793,1.15478,2654.2,2654.1,2.88986636]
[1729383205390,1.15478,2654.2,2654.1,1.4092443]
[1729383205903,0.778,2654.2,2654.1,1.4092443]
[1729383206098,0.778,2654.2,2654.1,2.88986636]
[1729383206294,1.15478,2654.2,2654.1,1.40818337]
[1729383206505,1.15478,2654.2,2654.1,2.88880543]
[1729383206694,1.15478,2654.2,2654.1,1.40818337]
[1729383206893,0.778,2654.2,2654.1,1.40818337]
[1729383207498,1.15478,2654.2,2654.0,1.48062206]
[1729383207797,4.0315,2654.5,2654.1,1.40780179]
[1729383207996,3.2078,2654.5,2654.3,0.37676]
[1729383208197,0.78391,2654.7,2654.3,0.37676]
[1729383208198,0.37672,2654.6,2654.4,1.4075887]
[1729383208505,0.4072,2654.7,2654.3,1.48062206]
[1729383208506,0.78391,2654.7,2654.3,1.48062206]
[1729383208703,0.78391,2654.7,2654.4,1.40662134]
[1729383208906,0.37672,2654.6,2654.3,1.48062206]
[1729383209095,0.37672,2654.6,2654.4,1.40650354]
[1729383209295,0.37672,2654.6,2654.3,1.48062206]
[1729383209996,0.4072,2654.7,2654.3,1.48062206]
[1729383210507,0.37672,2654.6,2654.3,1.48062206]
[1729383211002,0.37672,2654.6,2654.2,3.09719206]
[1729383211203,0.37672,2654.6,2654.3,2.88632899]
[1729383211404,0.37672,2654.6,2654.2,3.09719206]
[1729383211604,0.37672,2654.6,2654.3,1.40538822]
[1729383211802,0.37672,2654.6,2654.2,3.09719206]
[1729383212003,0.37672,2654.6,2654.3,1.40541375]
[1729383212306,0.37676,2654.4,2654.2,2.72042206]
[1729383212503,3.2078,2654.6,2654.0,4.68842206]
[1729383212798,0.37679,2654.1,2654.0,3.2078]
[1729383213003,0.7861,2654.3,2653.8,1.48062206]
[1729383213209,0.37681,2654.0,2653.9,1.40568547]
[1729383213410,0.4291,2654.2,2653.9,1.40568547]
[1729383213600,0.3768,2654.0,2653.8,1.85745206]
[1729383213902,0.3768,2654.0,2653.9,1.40566342]
[1729383214304,0.37683,2653.9,2653.7,2.31772206]
[1729383214502,0.37683,2653.9,2653.7,2.69457206]
[1729383215301,0.4291,2654.2,2653.7,2.31772206]
[1729383215901,0.37682,2653.9,2653.7,2.31772206]
[1729383216101,0.37682,2653.9,2653.7,0.8371]
[1729383216509,0.37682,2653.9,2653.7,2.31772206]
[1729383216706,0.37682,2653.9,2653.7,0.8371]
[1729383218411,0.4291,2654.2,2653.7,0.8371]